[Event "*** SCC Grand Prix: Titled Tuesday Blitz"]
[Site "Chess.com"]
[Date "2020.09.29"]
[Round "2"]
[White "MarkoPe"]
[Black "chessdjw"]
[Result "0-1"]
[WhiteElo "2154"]
[BlackElo "2626"]
[TimeControl "180+1"]
[EndTime "10:16:59 PDT"]
[Termination "chessdjw won on time"]

1. e4 {[%clk 0:03:00.9]} 1... c5 {[%clk 0:03:00.1]} 2. Nf3 {[%clk 0:02:56.5]}
2... d6 {[%clk 0:03:00.7]} 3. Bb5+ {[%clk 0:02:56.4]} 3... Nd7 {[%clk
0:03:00.1]} 4. O-O {[%clk 0:02:53.5]} 4... a6 {[%clk 0:03:00.2]} 5. Bd3 {[%clk
0:02:49.1]} 5... Ngf6 {[%clk 0:02:59.8]} 6. c3 {[%clk 0:02:46.7]} 6... b5 {[%clk
0:02:50.4]} 7. Bc2 {[%clk 0:02:43]} 7... Bb7 {[%clk 0:02:48.3]} 8. Re1 {[%clk
0:02:42.9]} 8... c4 {[%clk 0:02:47.1]} 9. b3 {[%clk 0:02:40]} 9... e6 {[%clk
0:02:41.3]} 10. a4 {[%clk 0:02:39]} 10... cxb3 {[%clk 0:02:36.3]} 11. Bxb3
{[%clk 0:02:27.2]} 11... Be7 {[%clk 0:02:33.7]} 12. d3 {[%clk 0:02:13.6]} 12...
O-O {[%clk 0:02:29.4]} 13. Be3 {[%clk 0:02:08.6]} 13... Nc5 {[%clk 0:02:25]} 14.
Bc2 {[%clk 0:01:56.6]} 14... Nxa4 {[%clk 0:02:23.3]} 15. Bxa4 {[%clk 0:01:56.3]}
15... bxa4 {[%clk 0:02:24.2]} 16. Qxa4 {[%clk 0:01:55.8]} 16... a5 {[%clk
0:02:21.1]} 17. Nbd2 {[%clk 0:01:53.6]} 17... Qc7 {[%clk 0:02:20.5]} 18. Nc4
{[%clk 0:01:51.5]} 18... Bc6 {[%clk 0:02:19]} 19. Qa2 {[%clk 0:01:39.9]} 19...
a4 {[%clk 0:02:14.5]} 20. Reb1 {[%clk 0:01:33]} 20... Nd7 {[%clk 0:02:09.7]} 21.
Nd4 {[%clk 0:01:26.4]} 21... d5 {[%clk 0:02:06.2]} 22. Nxc6 {[%clk 0:01:17]}
22... Qxc6 {[%clk 0:02:05.1]} 23. exd5 {[%clk 0:01:14.8]} 23... exd5 {[%clk
0:02:02.7]} 24. Nb6 {[%clk 0:00:53.5]} 24... Nxb6 {[%clk 0:01:58.4]} 25. Bxb6
{[%clk 0:00:50.9]} 25... Bf6 {[%clk 0:01:44.8]} 26. d4 {[%clk 0:00:30.1]} 26...
h5 {[%clk 0:01:33]} 27. Bc5 {[%clk 0:00:30.2]} 27... Rfb8 {[%clk 0:01:26.7]} 28.
h3 {[%clk 0:00:29.5]} 28... Rxb1+ {[%clk 0:01:15.3]} 29. Rxb1 {[%clk 0:00:28.5]}
29... Qd7 {[%clk 0:01:06.4]} 30. Rb6 {[%clk 0:00:22]} 30... Qf5 {[%clk
0:01:03.2]} 31. Qa3 {[%clk 0:00:17.1]} 31... Re8 {[%clk 0:01:00.5]} 32. Qc1
{[%clk 0:00:06.9]} 32... Re2 {[%clk 0:00:55.1]} 33. Qf1 {[%clk 0:00:05.8]} 33...
Ra2 {[%clk 0:00:48]} 34. Rb8+ {[%clk 0:00:05.2]} 34... Kh7 {[%clk 0:00:47.5]}
35. Rb1 {[%clk 0:00:03.5]} 35... Bh4 {[%clk 0:00:46.6]} 36. g3 {[%clk
0:00:01.9]} 36... Bxg3 {[%clk 0:00:35.8]} 37. fxg3 {[%clk 0:00:01.4]} 37... Qc2
{[%clk 0:00:36.5]} 0-1

[Event "*** SCC Grand Prix: Titled Tuesday Blitz"]
[Site "Chess.com"]
[Date "2020.09.29"]
[Round "2"]
[White "Alindsay211"]
[Black "maxsergej"]
[Result "1-0"]
[WhiteElo "2388"]
[BlackElo "2087"]
[TimeControl "180+1"]
[EndTime "10:16:59 PDT"]
[Termination "Alindsay211 won on time"]

1. e4 {[%clk 0:02:30.1]} 1... e5 {[%clk 0:02:59.1]} 2. Nf3 {[%clk 0:02:27.5]}
2... Nc6 {[%clk 0:02:59]} 3. Bc4 {[%clk 0:02:27]} 3... Nf6 {[%clk 0:02:58.4]} 4.
d3 {[%clk 0:02:26.9]} 4... h6 {[%clk 0:02:58]} 5. O-O {[%clk 0:02:24.5]} 5...
Be7 {[%clk 0:02:57.8]} 6. c3 {[%clk 0:02:23.9]} 6... O-O {[%clk 0:02:57.7]} 7.
Nbd2 {[%clk 0:02:22.5]} 7... Re8 {[%clk 0:02:57.1]} 8. Re1 {[%clk 0:02:13.5]}
8... d6 {[%clk 0:02:54.5]} 9. h3 {[%clk 0:02:03.6]} 9... a6 {[%clk 0:02:53.3]}
10. a4 {[%clk 0:02:02.2]} 10... Bf8 {[%clk 0:02:52.5]} 11. Nf1 {[%clk
0:02:00.7]} 11... Na5 {[%clk 0:02:45.8]} 12. Ba2 {[%clk 0:01:59.6]} 12... c5
{[%clk 0:02:46]} 13. Ng3 {[%clk 0:01:52.7]} 13... Qc7 {[%clk 0:02:33.1]} 14. b4
{[%clk 0:01:47.6]} 14... Nc6 {[%clk 0:02:30.9]} 15. bxc5 {[%clk 0:01:42.2]}
15... dxc5 {[%clk 0:02:30]} 16. Be3 {[%clk 0:01:35.5]} 16... Bd7 {[%clk
0:02:17.2]} 17. Qc2 {[%clk 0:01:34.9]} 17... Rad8 {[%clk 0:02:15.3]} 18. Rab1
{[%clk 0:01:33.7]} 18... Bc8 {[%clk 0:02:15.1]} 19. Red1 {[%clk 0:01:28.8]}
19... Qa5 {[%clk 0:02:02.5]} 20. Nd2 {[%clk 0:01:27.7]} 20... b5 {[%clk
0:01:38]} 21. axb5 {[%clk 0:01:26.3]} 21... axb5 {[%clk 0:01:38.1]} 22. Ra1
{[%clk 0:01:26.6]} 22... Qc7 {[%clk 0:01:32.5]} 23. Rdb1 {[%clk 0:01:25.4]}
23... Bd7 {[%clk 0:01:22.7]} 24. Qd1 {[%clk 0:01:20.2]} 24... b4 {[%clk
0:01:21.5]} 25. cxb4 {[%clk 0:01:14.9]} 25... Nxb4 {[%clk 0:01:20.8]} 26. Bc4
{[%clk 0:01:14.5]} 26... Ra8 {[%clk 0:01:05.6]} 27. Rxa8 {[%clk 0:01:11]} 27...
Rxa8 {[%clk 0:01:03]} 28. Ra1 {[%clk 0:01:11.1]} 28... Bc6 {[%clk 0:00:54.5]}
29. Rxa8 {[%clk 0:01:08.4]} 29... Bxa8 {[%clk 0:00:54.5]} 30. Qa4 {[%clk
0:01:07.5]} 30... Bc6 {[%clk 0:00:53.3]} 31. Qb3 {[%clk 0:00:59.9]} 31... Qd7
{[%clk 0:00:52.7]} 32. Nf5 {[%clk 0:00:59.4]} 32... Nh5 {[%clk 0:00:37.4]} 33.
g3 {[%clk 0:00:57.5]} 33... Nf6 {[%clk 0:00:36.7]} 34. Nf3 {[%clk 0:00:50.6]}
34... Qb7 {[%clk 0:00:28]} 35. Nxe5 {[%clk 0:00:48.6]} 35... Bxe4 {[%clk
0:00:13.7]} 36. Bxf7+ {[%clk 0:00:42.8]} 36... Kh7 {[%clk 0:00:11.3]} 37. dxe4
{[%clk 0:00:42.5]} 37... Qxe4 {[%clk 0:00:08.2]} 38. Bg6+ {[%clk 0:00:36]} 38...
Kh8 {[%clk 0:00:06.8]} 39. Nf7+ {[%clk 0:00:34.6]} 39... Kg8 {[%clk 0:00:07.2]}
40. N7xh6+ {[%clk 0:00:34.2]} 1-0

[Event "*** SCC Grand Prix: Titled Tuesday Blitz"]
[Site "Chess.com"]
[Date "2020.09.29"]
[Round "2"]
[White "Vesper2018"]
[Black "LiemLe"]
[Result "0-1"]
[WhiteElo "2601"]
[BlackElo "2984"]
[TimeControl "180+1"]
[EndTime "10:17:01 PDT"]
[Termination "LiemLe won on time"]

1. e4 {[%clk 0:02:52]} 1... c6 {[%clk 0:02:45.8]} 2. Nf3 {[%clk 0:02:47.6]} 2...
d5 {[%clk 0:02:46.7]} 3. exd5 {[%clk 0:02:45.7]} 3... cxd5 {[%clk 0:02:47.6]} 4.
Ne5 {[%clk 0:02:46.1]} 4... Nc6 {[%clk 0:02:41]} 5. d4 {[%clk 0:02:45.8]} 5...
a6 {[%clk 0:02:40.7]} 6. c3 {[%clk 0:02:44.3]} 6... Nxe5 {[%clk 0:02:39.3]} 7.
dxe5 {[%clk 0:02:44.3]} 7... Bf5 {[%clk 0:02:40]} 8. Bd3 {[%clk 0:02:41.9]} 8...
Bxd3 {[%clk 0:02:39.2]} 9. Qxd3 {[%clk 0:02:42]} 9... e6 {[%clk 0:02:40.1]} 10.
O-O {[%clk 0:02:41.4]} 10... Ne7 {[%clk 0:02:31.3]} 11. Nd2 {[%clk 0:02:34.4]}
11... Qc7 {[%clk 0:02:26.5]} 12. f4 {[%clk 0:02:18.9]} 12... Nf5 {[%clk
0:02:25.6]} 13. Nf3 {[%clk 0:02:18.9]} 13... Bc5+ {[%clk 0:02:23.9]} 14. Kh1
{[%clk 0:02:18.7]} 14... O-O-O {[%clk 0:02:20.6]} 15. Nd4 {[%clk 0:02:13.8]}
15... Bxd4 {[%clk 0:02:16.7]} 16. cxd4 {[%clk 0:02:13.5]} 16... Qc4 {[%clk
0:02:17.1]} 17. Rd1 {[%clk 0:02:10.4]} 17... Qxd3 {[%clk 0:02:08.3]} 18. Rxd3
{[%clk 0:02:10.3]} 18... h5 {[%clk 0:02:06.2]} 19. Bd2 {[%clk 0:01:59]} 19...
Kb8 {[%clk 0:02:02.7]} 20. g3 {[%clk 0:01:53.4]} 20... Rc8 {[%clk 0:02:02.2]}
21. Bc3 {[%clk 0:01:53.5]} 21... Rc4 {[%clk 0:01:59.5]} 22. a4 {[%clk
0:01:48.1]} 22... b6 {[%clk 0:01:54.7]} 23. Kg2 {[%clk 0:01:47]} 23... Kc7
{[%clk 0:01:47.8]} 24. b3 {[%clk 0:01:19.9]} 24... Rc6 {[%clk 0:01:47.3]} 25.
Kf3 {[%clk 0:01:20.3]} 25... Kd7 {[%clk 0:01:45.3]} 26. Ke2 {[%clk 0:01:20]}
26... f6 {[%clk 0:01:36.2]} 27. Kd2 {[%clk 0:01:14.7]} 27... Ke7 {[%clk
0:01:23.8]} 28. a5 {[%clk 0:01:11.8]} 28... Kf7 {[%clk 0:01:12.1]} 29. axb6
{[%clk 0:00:52.1]} 29... Rxb6 {[%clk 0:01:13]} 30. b4 {[%clk 0:00:52.6]} 30...
Ne7 {[%clk 0:01:03.3]} 31. Rf3 {[%clk 0:00:25.4]} 31... Rhb8 {[%clk 0:00:50.8]}
32. Rff1 {[%clk 0:00:23.3]} 32... Nc6 {[%clk 0:00:33]} 33. Rfb1 {[%clk
0:00:11.7]} 33... a5 {[%clk 0:00:30.8]} 34. Ra4 {[%clk 0:00:03.3]} 34... Kg6
{[%clk 0:00:24.9]} 35. Kd3 {[%clk 0:00:01.5]} 35... Kf5 {[%clk 0:00:22.1]} 0-1

[Event "*** SCC Grand Prix: Titled Tuesday Blitz"]
[Site "Chess.com"]
[Date "2020.09.29"]
[Round "2"]
[White "sjam6687"]
[Black "XDPS"]
[Result "1/2-1/2"]
[WhiteElo "2519"]
[BlackElo "2757"]
[TimeControl "180+1"]
[EndTime "10:17:01 PDT"]
[Termination "Game drawn by repetition"]

1. d4 {[%clk 0:03:00.9]} 1... d5 {[%clk 0:02:59.6]} 2. c4 {[%clk 0:03:01]} 2...
e6 {[%clk 0:02:59.1]} 3. Nc3 {[%clk 0:03:00.5]} 3... Nf6 {[%clk 0:02:58.8]} 4.
Bg5 {[%clk 0:03:00.7]} 4... c6 {[%clk 0:02:58.1]} 5. e3 {[%clk 0:02:59.4]} 5...
Nbd7 {[%clk 0:02:58.4]} 6. Nf3 {[%clk 0:02:56.1]} 6... Qa5 {[%clk 0:02:58.8]} 7.
cxd5 {[%clk 0:02:54.1]} 7... Nxd5 {[%clk 0:02:58.4]} 8. Qd2 {[%clk 0:02:53.8]}
8... Bb4 {[%clk 0:02:52.3]} 9. Rc1 {[%clk 0:02:44.1]} 9... b6 {[%clk 0:02:51.5]}
10. a3 {[%clk 0:02:29.1]} 10... Bxc3 {[%clk 0:02:51.4]} 11. bxc3 {[%clk
0:02:25.6]} 11... Ba6 {[%clk 0:02:49.3]} 12. c4 {[%clk 0:02:08.1]} 12... Qxd2+
{[%clk 0:02:50.2]} 13. Nxd2 {[%clk 0:02:06.2]} 13... N5f6 {[%clk 0:02:50.2]} 14.
f3 {[%clk 0:01:55.5]} 14... h6 {[%clk 0:02:47.3]} 15. Bh4 {[%clk 0:01:42.7]}
15... c5 {[%clk 0:02:47.5]} 16. Kf2 {[%clk 0:01:41.5]} 16... O-O {[%clk
0:02:47.2]} 17. Be2 {[%clk 0:01:36.2]} 17... Rac8 {[%clk 0:02:46.3]} 18. Rhd1
{[%clk 0:01:34.2]} 18... Rfe8 {[%clk 0:02:34.3]} 19. g4 {[%clk 0:01:22]} 19...
cxd4 {[%clk 0:02:34.2]} 20. exd4 {[%clk 0:01:21.8]} 20... e5 {[%clk 0:02:34.7]}
21. d5 {[%clk 0:01:18.2]} 21... g5 {[%clk 0:02:12.3]} 22. Bg3 {[%clk 0:01:17.6]}
22... Nc5 {[%clk 0:02:12.8]} 23. Nf1 {[%clk 0:01:09.3]} 23... e4 {[%clk
0:02:10]} 24. Ne3 {[%clk 0:00:55]} 24... exf3 {[%clk 0:01:59]} 25. Bxf3 {[%clk
0:00:55.4]} 25... Kh7 {[%clk 0:01:44.3]} 26. Nf5 {[%clk 0:00:51.9]} 26... Nce4+
{[%clk 0:01:44.1]} 27. Bxe4 {[%clk 0:00:50.4]} 27... Nxe4+ {[%clk 0:01:44.1]}
28. Kf3 {[%clk 0:00:50]} 28... Bxc4 {[%clk 0:01:20.6]} 29. d6 {[%clk 0:00:49.6]}
29... Bb3 {[%clk 0:00:23.2]} 30. d7 {[%clk 0:00:27.3]} 30... Bxd1+ {[%clk
0:00:22.9]} 31. Rxd1 {[%clk 0:00:27.6]} 31... Rc3+ {[%clk 0:00:23.1]} 32. Ne3
{[%clk 0:00:26.8]} 32... Nd2+ {[%clk 0:00:20.3]} 33. Kf2 {[%clk 0:00:21]} 33...
Ne4+ {[%clk 0:00:12.3]} 34. Kf3 {[%clk 0:00:21.2]} 34... Nd2+ {[%clk 0:00:11.9]}
35. Kf2 {[%clk 0:00:17.9]} 35... Ne4+ {[%clk 0:00:11.5]} 36. Kf3 {[%clk
0:00:16.3]} 1/2-1/2

[Event "*** SCC Grand Prix: Titled Tuesday Blitz"]
[Site "Chess.com"]
[Date "2020.09.29"]
[Round "2"]
[White "Larina_Marija"]
[Black "atalz0"]
[Result "1-0"]
[WhiteElo "2201"]
[BlackElo "2394"]
[TimeControl "180+1"]
[EndTime "10:17:01 PDT"]
[Termination "Larina_Marija won on time"]

1. e4 {[%clk 0:03:00]} 1... d5 {[%clk 0:02:59.7]} 2. exd5 {[%clk 0:02:59.7]}
2... Nf6 {[%clk 0:02:59.8]} 3. d4 {[%clk 0:02:55.1]} 3... Nxd5 {[%clk
0:02:59.8]} 4. c4 {[%clk 0:02:55.6]} 4... Nb6 {[%clk 0:02:59.4]} 5. Nc3 {[%clk
0:02:51.4]} 5... e5 {[%clk 0:02:59.1]} 6. d5 {[%clk 0:02:50.6]} 6... Bb4 {[%clk
0:02:57.5]} 7. Qb3 {[%clk 0:02:45.6]} 7... Na6 {[%clk 0:02:43]} 8. Bd2 {[%clk
0:02:39.8]} 8... Qe7 {[%clk 0:02:37.8]} 9. a3 {[%clk 0:02:27.6]} 9... Bd6 {[%clk
0:02:22]} 10. Ne4 {[%clk 0:02:22.4]} 10... Nc5 {[%clk 0:02:18.6]} 11. Nxd6+
{[%clk 0:02:11.6]} 11... cxd6 {[%clk 0:02:14.8]} 12. Qg3 {[%clk 0:02:11.1]}
12... O-O {[%clk 0:02:09.8]} 13. Be2 {[%clk 0:02:10]} 13... Ne4 {[%clk
0:02:07.6]} 14. Qe3 {[%clk 0:02:08.6]} 14... f5 {[%clk 0:01:53.1]} 15. Bc1
{[%clk 0:02:00.6]} 15... Bd7 {[%clk 0:01:18.8]} 16. f3 {[%clk 0:01:56.4]} 16...
Nf6 {[%clk 0:01:16.1]} 17. b3 {[%clk 0:01:48.3]} 17... f4 {[%clk 0:01:15.3]} 18.
Qc3 {[%clk 0:01:29.1]} 18... Rac8 {[%clk 0:01:14.4]} 19. Qd2 {[%clk 0:01:16.1]}
19... e4 {[%clk 0:01:12.4]} 20. Bb2 {[%clk 0:01:07.4]} 20... Rce8 {[%clk
0:00:57.6]} 21. O-O-O {[%clk 0:01:01]} 21... e3 {[%clk 0:00:31.8]} 22. Qd4
{[%clk 0:00:58.7]} 22... Bf5 {[%clk 0:00:28.1]} 23. h4 {[%clk 0:00:53.9]} 23...
h6 {[%clk 0:00:27.2]} 24. Nh3 {[%clk 0:00:53.2]} 24... Nh5 {[%clk 0:00:22.2]}
25. Nxf4 {[%clk 0:00:44.4]} 25... Nxf4 {[%clk 0:00:20.6]} 26. Qxf4 {[%clk
0:00:44.3]} 26... Bc2 {[%clk 0:00:18.7]} 27. Qd4 {[%clk 0:00:38.9]} 27... Bxd1
{[%clk 0:00:17.6]} 28. Rxd1 {[%clk 0:00:39.1]} 28... Nd7 {[%clk 0:00:17.5]} 29.
Bd3 {[%clk 0:00:27.1]} 29... Nc5 {[%clk 0:00:17]} 30. Bc2 {[%clk 0:00:25.3]}
30... a5 {[%clk 0:00:17.3]} 31. b4 {[%clk 0:00:22.8]} 31... axb4 {[%clk
0:00:16.6]} 32. axb4 {[%clk 0:00:23.7]} 32... Na6 {[%clk 0:00:16.2]} 33. Qd3
{[%clk 0:00:23.9]} 33... g5 {[%clk 0:00:09.3]} 34. Qg6+ {[%clk 0:00:23.5]} 1-0

[Event "*** SCC Grand Prix: Titled Tuesday Blitz"]
[Site "Chess.com"]
[Date "2020.09.29"]
[Round "2"]
[White "Jospem"]
[Black "CaspiIsrael"]
[Result "1-0"]
[WhiteElo "2968"]
[BlackElo "2597"]
[TimeControl "180+1"]
[EndTime "10:17:04 PDT"]
[Termination "Jospem won by resignation"]

1. e4 {[%clk 0:03:00.9]} 1... e5 {[%clk 0:02:59.4]} 2. Nf3 {[%clk 0:03:00.8]}
2... Nc6 {[%clk 0:02:59.6]} 3. Bb5 {[%clk 0:03:01.2]} 3... g6 {[%clk 0:02:59.7]}
4. c3 {[%clk 0:02:59.8]} 4... a6 {[%clk 0:02:59]} 5. Ba4 {[%clk 0:02:59.7]} 5...
Bg7 {[%clk 0:02:59.1]} 6. d4 {[%clk 0:02:59.8]} 6... exd4 {[%clk 0:02:59.5]} 7.
cxd4 {[%clk 0:03:00.7]} 7... b5 {[%clk 0:02:59.8]} 8. Bb3 {[%clk 0:03:01]} 8...
d6 {[%clk 0:03:00.2]} 9. a4 {[%clk 0:03:01]} 9... Rb8 {[%clk 0:02:54.1]} 10.
axb5 {[%clk 0:02:59.7]} 10... axb5 {[%clk 0:02:55]} 11. d5 {[%clk 0:02:51.6]}
11... Ne5 {[%clk 0:02:48.9]} 12. Nxe5 {[%clk 0:02:50.8]} 12... Bxe5 {[%clk
0:02:49.1]} 13. Nd2 {[%clk 0:02:51.4]} 13... Ne7 {[%clk 0:02:48.4]} 14. O-O
{[%clk 0:02:49.9]} 14... O-O {[%clk 0:02:48.1]} 15. h3 {[%clk 0:02:38]} 15...
Bg7 {[%clk 0:02:44.9]} 16. Nf3 {[%clk 0:02:37]} 16... c5 {[%clk 0:02:40.1]} 17.
dxc6 {[%clk 0:02:29.1]} 17... Nxc6 {[%clk 0:02:38.9]} 18. Bg5 {[%clk 0:02:09.7]}
18... Bf6 {[%clk 0:02:30.5]} 19. Qd2 {[%clk 0:02:08.8]} 19... Re8 {[%clk
0:02:13.8]} 20. Qf4 {[%clk 0:01:57.4]} 20... Kg7 {[%clk 0:02:03.7]} 21. Rfd1
{[%clk 0:01:45.7]} 21... Ne5 {[%clk 0:01:34.5]} 22. Nxe5 {[%clk 0:01:17.1]}
22... Rxe5 {[%clk 0:01:30.2]} 23. Qxe5 {[%clk 0:00:49.5]} 23... dxe5 {[%clk
0:01:20.3]} 24. Rxd8 {[%clk 0:00:50.4]} 24... Bxg5 {[%clk 0:01:19.6]} 25. Re8
{[%clk 0:00:48.6]} 25... b4 {[%clk 0:00:53.8]} 26. h4 {[%clk 0:00:38.9]} 26...
Bxh4 {[%clk 0:00:33.9]} 27. Rc1 {[%clk 0:00:34.1]} 27... Be6 {[%clk 0:00:34.2]}
28. Rxb8 {[%clk 0:00:32.9]} 28... Bxb3 {[%clk 0:00:34.1]} 29. Rxb4 {[%clk
0:00:33.5]} 29... Be6 {[%clk 0:00:34.6]} 30. Rb8 {[%clk 0:00:31.4]} 30... Bg5
{[%clk 0:00:33.1]} 31. Rd1 {[%clk 0:00:31.2]} 31... f5 {[%clk 0:00:26.1]} 32.
exf5 {[%clk 0:00:30.2]} 32... gxf5 {[%clk 0:00:25.5]} 33. b4 {[%clk 0:00:30.6]}
33... e4 {[%clk 0:00:25.7]} 34. b5 {[%clk 0:00:28.6]} 34... Bf4 {[%clk
0:00:25.8]} 35. Rb7+ {[%clk 0:00:25.9]} 35... Kg6 {[%clk 0:00:24.1]} 36. b6
{[%clk 0:00:26.8]} 36... e3 {[%clk 0:00:23.3]} 37. fxe3 {[%clk 0:00:25.8]} 37...
Bxe3+ {[%clk 0:00:24.2]} 38. Kh1 {[%clk 0:00:26.2]} 38... f4 {[%clk 0:00:23.3]}
39. Re7 {[%clk 0:00:23.1]} 39... Kf6 {[%clk 0:00:20.5]} 40. Rxe6+ {[%clk
0:00:23.2]} 40... Kxe6 {[%clk 0:00:20.3]} 41. b7 {[%clk 0:00:24.1]} 41... Ba7
{[%clk 0:00:18.4]} 42. Rd8 {[%clk 0:00:24.3]} 42... f3 {[%clk 0:00:16.4]} 43.
gxf3 {[%clk 0:00:25.2]} 43... Kf5 {[%clk 0:00:16.5]} 44. b8=Q {[%clk 0:00:25.1]}
1-0

[Event "*** SCC Grand Prix: Titled Tuesday Blitz"]
[Site "Chess.com"]
[Date "2020.09.29"]
[Round "2"]
[White "Bulldog167"]
[Black "maximnovik"]
[Result "1/2-1/2"]
[WhiteElo "2798"]
[BlackElo "2516"]
[TimeControl "180+1"]
[EndTime "10:17:05 PDT"]
[Termination "Game drawn by repetition"]

1. d4 {[%clk 0:02:15.7]} 1... Nf6 {[%clk 0:02:47.7]} 2. c4 {[%clk 0:02:14.7]}
2... g6 {[%clk 0:02:48]} 3. Nc3 {[%clk 0:02:14.7]} 3... d5 {[%clk 0:02:48.5]} 4.
Nf3 {[%clk 0:02:13.6]} 4... Bg7 {[%clk 0:02:48.4]} 5. Bg5 {[%clk 0:02:14.2]}
5... Ne4 {[%clk 0:02:48.2]} 6. cxd5 {[%clk 0:02:14.6]} 6... Nxg5 {[%clk
0:02:47.9]} 7. Nxg5 {[%clk 0:02:15.5]} 7... e6 {[%clk 0:02:48.3]} 8. Qd2 {[%clk
0:02:16.1]} 8... exd5 {[%clk 0:02:48.1]} 9. Qe3+ {[%clk 0:02:16.3]} 9... Kf8
{[%clk 0:02:48.6]} 10. Qf4 {[%clk 0:02:16.5]} 10... Bf6 {[%clk 0:02:48.7]} 11.
h4 {[%clk 0:02:16.8]} 11... h6 {[%clk 0:02:49.1]} 12. Nf3 {[%clk 0:02:17.3]}
12... Be6 {[%clk 0:02:48.9]} 13. O-O-O {[%clk 0:02:17.3]} 13... Nd7 {[%clk
0:02:41.9]} 14. e4 {[%clk 0:02:12.7]} 14... dxe4 {[%clk 0:02:38.1]} 15. Ne5
{[%clk 0:02:12.5]} 15... Kg7 {[%clk 0:02:26.6]} 16. Nxe4 {[%clk 0:02:10.5]}
16... Bxe5 {[%clk 0:02:02.7]} 17. dxe5 {[%clk 0:02:10.2]} 17... Qe7 {[%clk
0:02:03]} 18. Bb5 {[%clk 0:01:41.6]} 18... c6 {[%clk 0:01:36.8]} 19. Ba4 {[%clk
0:00:52.6]} 19... Bd5 {[%clk 0:01:32.2]} 20. Bb3 {[%clk 0:00:51.1]} 20... Bxb3
{[%clk 0:01:13.3]} 21. axb3 {[%clk 0:00:49.5]} 21... Nxe5 {[%clk 0:01:09.6]} 22.
h5 {[%clk 0:00:35.5]} 22... g5 {[%clk 0:01:01]} 23. Qf5 {[%clk 0:00:30.7]} 23...
Rad8 {[%clk 0:01:00]} 24. Kb1 {[%clk 0:00:30.1]} 24... Rd5 {[%clk 0:00:29.6]}
25. Rxd5 {[%clk 0:00:26.8]} 25... cxd5 {[%clk 0:00:29.3]} 26. Ng3 {[%clk
0:00:27.4]} 26... Qf6 {[%clk 0:00:23.1]} 27. Qc2 {[%clk 0:00:27.9]} 27... Rd8
{[%clk 0:00:20.7]} 28. Nf5+ {[%clk 0:00:24.3]} 28... Kh8 {[%clk 0:00:19.9]} 29.
Rd1 {[%clk 0:00:24.8]} 29... Nc6 {[%clk 0:00:17.8]} 30. g4 {[%clk 0:00:20.8]}
30... d4 {[%clk 0:00:17.3]} 31. Qe4 {[%clk 0:00:21.1]} 31... Qe6 {[%clk
0:00:13.2]} 32. Qf3 {[%clk 0:00:13.4]} 32... Ne5 {[%clk 0:00:12.2]} 33. Qe4
{[%clk 0:00:11.6]} 33... Nc6 {[%clk 0:00:11.6]} 34. Qf3 {[%clk 0:00:11.8]} 34...
Ne5 {[%clk 0:00:11.6]} 35. Qe4 {[%clk 0:00:09.8]} 35... Nc6 {[%clk 0:00:10.1]}
1/2-1/2

[Event "*** SCC Grand Prix: Titled Tuesday Blitz"]
[Site "Chess.com"]
[Date "2020.09.29"]
[Round "2"]
[White "Rakesh"]
[Black "Roza_Idrisova"]
[Result "1-0"]
[WhiteElo "2400"]
[BlackElo "2118"]
[TimeControl "180+1"]
[EndTime "10:17:06 PDT"]
[Termination "Rakesh won on time"]

1. e4 {[%clk 0:03:00.9]} 1... c6 {[%clk 0:02:59.4]} 2. c4 {[%clk 0:02:59.9]}
2... d5 {[%clk 0:02:59.5]} 3. cxd5 {[%clk 0:03:00.8]} 3... cxd5 {[%clk
0:02:59.4]} 4. exd5 {[%clk 0:03:01.7]} 4... Nf6 {[%clk 0:02:59.7]} 5. Qa4+
{[%clk 0:03:01.5]} 5... Nbd7 {[%clk 0:02:59.3]} 6. Nc3 {[%clk 0:03:02.1]} 6...
g6 {[%clk 0:02:59.4]} 7. Bc4 {[%clk 0:03:02.7]} 7... Bg7 {[%clk 0:02:59.6]} 8.
Nf3 {[%clk 0:03:03.4]} 8... O-O {[%clk 0:02:59.5]} 9. d3 {[%clk 0:03:04]} 9...
a6 {[%clk 0:02:52.9]} 10. Qa3 {[%clk 0:03:04.1]} 10... b6 {[%clk 0:02:36.7]} 11.
O-O {[%clk 0:02:59.6]} 11... Bb7 {[%clk 0:02:36.8]} 12. Re1 {[%clk 0:02:57.6]}
12... Re8 {[%clk 0:02:35.7]} 13. Ng5 {[%clk 0:02:48.4]} 13... b5 {[%clk
0:02:29.6]} 14. Bb3 {[%clk 0:02:46.7]} 14... Nb6 {[%clk 0:02:19.7]} 15. d6
{[%clk 0:02:45.2]} 15... e6 {[%clk 0:02:15.9]} 16. Nge4 {[%clk 0:02:45.7]} 16...
Nfd5 {[%clk 0:02:02.7]} 17. Bg5 {[%clk 0:02:29.7]} 17... f6 {[%clk 0:01:58]} 18.
Nxd5 {[%clk 0:02:29.4]} 18... Bxd5 {[%clk 0:01:42.9]} 19. Bxd5 {[%clk
0:02:20.8]} 19... Nxd5 {[%clk 0:01:39.8]} 20. Bd2 {[%clk 0:02:15.8]} 20... Bf8
{[%clk 0:01:30.9]} 21. Qb3 {[%clk 0:01:53.6]} 21... Bxd6 {[%clk 0:01:22.3]} 22.
a4 {[%clk 0:01:49.6]} 22... b4 {[%clk 0:01:16.1]} 23. h4 {[%clk 0:01:37.3]}
23... Bf8 {[%clk 0:01:12.4]} 24. h5 {[%clk 0:01:36.5]} 24... Bg7 {[%clk
0:00:38.3]} 25. hxg6 {[%clk 0:01:35.7]} 25... hxg6 {[%clk 0:00:37.9]} 26. Rac1
{[%clk 0:01:34.3]} 26... Rc8 {[%clk 0:00:34.4]} 27. Nc5 {[%clk 0:01:34.6]} 27...
Qb6 {[%clk 0:00:28.9]} 28. Nxe6 {[%clk 0:01:28.5]} 28... Rxc1 {[%clk 0:00:24.7]}
29. Bxc1 {[%clk 0:01:29.4]} 29... Rxe6 {[%clk 0:00:20.6]} 30. Qxd5 {[%clk
0:01:28.9]} 30... Kf7 {[%clk 0:00:20.4]} 31. Rxe6 {[%clk 0:01:07.9]} 31... Qxe6
{[%clk 0:00:19.6]} 32. Qb7+ {[%clk 0:01:08.4]} 32... Kg8 {[%clk 0:00:18]} 33.
Qxb4 {[%clk 0:01:06.6]} 33... f5 {[%clk 0:00:14.5]} 34. Qc4 {[%clk 0:01:05.8]}
34... Kf7 {[%clk 0:00:12.9]} 35. Kf1 {[%clk 0:01:05.7]} 35... Ke7 {[%clk
0:00:12.6]} 36. Bg5+ {[%clk 0:01:04.9]} 36... Kd7 {[%clk 0:00:12.4]} 37. Qxe6+
{[%clk 0:00:58.2]} 37... Kxe6 {[%clk 0:00:12.2]} 38. b3 {[%clk 0:00:57.8]} 38...
Kd5 {[%clk 0:00:11.2]} 39. Be3 {[%clk 0:00:58.3]} 39... Bc3 {[%clk 0:00:11.1]}
40. Ke2 {[%clk 0:00:58.3]} 40... a5 {[%clk 0:00:09.6]} 41. Kd1 {[%clk
0:00:58.5]} 41... Bb4 {[%clk 0:00:03.9]} 42. Kc2 {[%clk 0:00:58.8]} 42... Bd6
{[%clk 0:00:02.5]} 43. f3 {[%clk 0:00:59.1]} 43... Bc7 {[%clk 0:00:02.1]} 44.
Bd2 {[%clk 0:00:59.6]} 44... Bb6 {[%clk 0:00:02]} 45. Bh6 {[%clk 0:00:59.4]}
45... Bc7 {[%clk 0:00:02]} 46. Bg7 {[%clk 0:00:59.3]} 46... Bb6 {[%clk
0:00:02.1]} 47. Bc3 {[%clk 0:00:59.3]} 47... Bc7 {[%clk 0:00:02]} 48. Kd2 {[%clk
0:00:59.8]} 48... Bb6 {[%clk 0:00:02.2]} 49. Ke2 {[%clk 0:01:00.2]} 49... Ke6
{[%clk 0:00:01.9]} 50. g3 {[%clk 0:01:00.6]} 50... Kd5 {[%clk 0:00:02]} 51. Be1
{[%clk 0:01:00.7]} 1-0